fUSD/lending_fUSD_20250507
["ID","MTS","AMOUNT","RATE_DAILY","PERIOD"]
[360217296,1746628970281,5003.5,0.00013699,2]
[360217297,1746628970715,252.53817496,0.00013699,2]
[360217298,1746628970744,4750.96182504,0.00013699,2]
[360217299,1746628971382,5003.5,0.00013699,2]
[360217300,1746628971772,5003.5,0.00013699,2]
[360217301,1746628972855,5003.5,0.00013699,2]
[360217302,1746628973384,5003.5,0.00013699,2]
[360217303,1746628973885,5003.5,0.00013699,2]
[360217304,1746628974470,5003.5,0.00013699,2]
[360217305,1746628974994,5003.5,0.00013699,2]
[360217306,1746628975475,5003.5,0.00013699,2]
[360217307,1746628976122,5003.5,0.00013699,2]
[360217308,1746628976607,5003.64010905,0.00013699,2]
[360217309,1746628989551,250.0,0.00018991,2]
[360217310,1746629096355,3025.59,0.00018834,2]
[360217311,1746629177473,244.27,0.00018834,2]
[360217312,1746629213308,150.0,0.00018987,7]
[360217313,1746629230763,3772.61,0.00018834,2]
[360217314,1746629344935,200.0,0.00018834,2]
[360217315,1746629366956,533.7,0.00018834,2]
[360217316,1746629383276,272.02,0.00018985,2]
[360217328,1746629432184,-502.538175,0.00019694,2]
[360217329,1746629432194,-250.0,0.00019793,2]
[360217330,1746629432204,-200.0,0.00019823,2]
[360217331,1746629432214,-200.0,0.00019858,2]
[360217332,1746629432226,-194.09506131,0.00019858,2]
[360217333,1746629432238,-1200.0,0.00019872,2]
[360217334,1746629432248,-300.0,0.00019872,2]
[360217335,1746629432257,-577.68146107,0.00019873,2]
[360217336,1746629432269,-500.0,0.00019873,2]
[360217337,1746629432279,-500.0,0.00019873,2]
[360217338,1746629432288,-500.0,0.00019873,2]
[360217339,1746629432298,-500.0,0.00019873,2]
[360217340,1746629432307,-500.0,0.00019873,2]
[360217341,1746629432317,-500.0,0.00019873,2]
[360217342,1746629432327,-500.0,0.00019873,2]
[360217343,1746629432337,-450.0,0.00019882,2]
[360217344,1746629432346,-450.0,0.00019882,2]
[360217345,1746629432356,-470.0,0.00019882,2]
[360217346,1746629432367,-470.0,0.00019882,2]
[360217347,1746629432376,-516.80054553,0.00019882,2]
[360217348,1746629432386,-470.0,0.00019882,2]
[360217349,1746629432396,-470.0,0.00019882,2]
[360217350,1746629432405,-470.0,0.00019883,2]
[360217351,1746629432415,-470.0,0.00019883,2]
[360217352,1746629432425,-450.0,0.00019883,2]
[360217353,1746629432438,-450.0,0.00019883,2]
[360217354,1746629432448,-254.51858953,0.00019883,2]
[360217355,1746629432459,-470.0,0.00019883,2]
[360217356,1746629432468,-470.0,0.00019883,2]
[360217357,1746629432478,-470.0,0.00019883,2]
[360217358,1746629432488,-450.0,0.00019883,2]
[360217359,1746629432499,-470.0,0.00019883,2]
[360217360,1746629432509,-290.94729881,0.00019883,2]
[360217362,1746629432520,-450.0,0.00019883,2]
[360217364,1746629432530,-470.0,0.00019883,2]
[360217366,1746629432539,-367.12070165,0.00019883,2]
[360217368,1746629432549,-517.84,0.00019883,2]
[360217370,1746629432559,-450.0,0.00019883,2]
[360217373,1746629432568,-450.0,0.00019883,2]
[360217375,1746629432579,-470.0,0.00019883,2]
[360217376,1746629432588,-450.0,0.00019883,2]
[360217379,1746629432599,-470.0,0.00019883,2]
[360217381,1746629432609,-470.0,0.00019883,2]
[360217382,1746629432619,-470.0,0.00019883,2]
[360217384,1746629432629,-470.0,0.00019883,2]
[360217386,1746629432638,-450.0,0.00019883,2]
[360217388,1746629432647,-450.0,0.00019883,2]
[360217391,1746629432658,-450.0,0.00019883,2]
[360217393,1746629432667,-470.0,0.00019883,2]
[360217394,1746629432677,-470.0,0.00019883,2]
[360217395,1746629432687,-470.0,0.00019883,2]
[360217396,1746629432697,-470.0,0.00019883,2]
[360217397,1746629432707,-450.0,0.00019883,2]
[360217398,1746629432717,-470.0,0.00019883,2]
[360217399,1746629432726,-470.0,0.00019883,2]
[360217400,1746629432736,-470.0,0.00019883,2]
[360217401,1746629432747,-470.0,0.00019883,2]
[360217402,1746629432758,-450.0,0.00019896,2]
[360217403,1746629432769,-450.0,0.00019896,2]
[360217404,1746629432778,-450.0,0.00019896,2]
[360217405,1746629432788,-450.0,0.00019896,2]
[360217406,1746629432799,-450.0,0.00019896,2]
[360217407,1746629432810,-450.0,0.00019896,2]
[360217408,1746629432821,-450.0,0.00019896,2]
[360217409,1746629432831,-450.0,0.00019896,2]
[360217410,1746629432841,-450.0,0.00019896,2]
[360217411,1746629432852,-2127.72,0.00019896,2]
[360217412,1746629432863,-450.0,0.00019896,2]
[360217413,1746629432874,-519.74279589,0.00019896,2]
[360217414,1746629432884,-450.0,0.00019896,2]
[360217415,1746629432893,-450.0,0.00019896,2]
[360217416,1746629432903,-450.0,0.00019896,2]
[360217417,1746629432913,-241.1631711,0.00019896,2]
[360217418,1746629432923,-450.0,0.00019896,2]
[360217419,1746629432933,-450.0,0.00019896,2]
[360217420,1746629432943,-450.0,0.00019896,2]
[360217421,1746629432953,-569.34771324,0.00019896,2]
[360217422,1746629432963,-450.0,0.00019896,2]
[360217423,1746629432973,-450.0,0.00019896,2]
[360217424,1746629432982,-168.41785469,0.00019896,2]
[360217425,1746629432992,-450.0,0.00019896,2]
[360217426,1746629433002,-500.0,0.00019896,2]
[360217427,1746629433013,-176.71904852,0.00019896,2]
[360217428,1746629433024,-450.0,0.00019896,2]
[360217429,1746629433034,-450.0,0.00019896,2]
[360217430,1746629433044,-450.0,0.00019896,2]
[360217431,1746629433054,-450.0,0.00019896,2]
[360217432,1746629433064,-450.0,0.00019896,2]
[360217433,1746629433075,-450.0,0.00019896,2]
[360217434,1746629433085,-450.0,0.00019896,2]
[360217435,1746629433095,-450.0,0.00019896,2]
[360217436,1746629433104,-1926.29,0.00019896,2]
[360217437,1746629433115,-450.0,0.00019896,2]
[360217438,1746629433124,-450.0,0.00019896,2]
[360217439,1746629433150,-578.56,0.00019896,2]
[360217440,1746629433160,-450.0,0.00019896,2]
[360217441,1746629433171,-450.0,0.00019897,2]
[360217442,1746629433181,-450.0,0.00019897,2]
[360217443,1746629433191,-7714.49758366,0.00019897,2]
[360217444,1746629433206,-1951.1492,0.00019897,2]
[360217445,1746629433225,-19489.32438801,0.00019897,2]
[360217446,1746629433239,-896.8800004,0.00019897,2]
[360217447,1746629433252,-7023.34779858,0.00019897,2]
[360217448,1746629433266,-488.3299992,0.00019897,2]
[360217449,1746629433279,-611.83246587,0.00019897,2]
[360217454,1746629438327,-1181.31166033,0.00019897,2]
[360217455,1746629438342,-894.99999998,0.00019897,2]
[360217456,1746629438395,-3897.77904705,0.00019897,2]
[360217457,1746629438493,-58638.73409292,0.00019897,2]
[360217459,1746629438503,-450.0,0.00019899,2]
[360217461,1746629438516,-450.0,0.00019899,2]
[360217462,1746629438525,-561.25208395,0.00019899,2]
[360217463,1746629438535,-298.90631766,0.000199,2]
[360217464,1746629438544,-166.55221696,0.000199,2]
[360217465,1746629438554,-551.59573722,0.000199,2]
[360217466,1746629438564,-927.7731652,0.000199,2]
[360217467,1746629438574,-642.03137616,0.000199,2]
[360217468,1746629438586,-191.01811665,0.000199,2]
[360217469,1746629438597,-1000.0,0.000199,2]
[360217470,1746629438607,-155.04735948,0.000199,2]
[360217471,1746629438618,-349.62158758,0.000199,2]
[360217472,1746629438628,-166.56928443,0.000199,2]
[360217473,1746629438637,-2951.62121706,0.000199,2]
[360217474,1746629438647,-798.0,0.00019945,2]
[360217475,1746629438656,-1142.0,0.00019945,2]
[360217476,1746629438666,-500.0,0.00019973,2]
[360217477,1746629438676,-500.0,0.00019973,2]
[360217478,1746629438685,-500.0,0.00019973,2]
[360217479,1746629438695,-500.0,0.00019973,2]
[360217480,1746629438704,-608.81492421,0.00019973,2]
[360217481,1746629438714,-648.91289437,0.00019973,2]
[360217482,1746629438723,-500.0,0.00019973,2]
[360217483,1746629438733,-176.20431305,0.00019973,2]
[360217484,1746629438743,-500.0,0.00019973,2]
[360217485,1746629438752,-207.4,0.00019974,2]
[360217487,1746629438762,-150.0,0.00019984,2]
[360217489,1746629438772,-150.0,0.00019984,2]
[360217491,1746629438782,-781.78928094,0.00019985,2]
[360217493,1746629438791,-500.0,0.00019985,2]
[360217495,1746629438801,-500.0,0.00019985,2]
[360217497,1746629438810,-362.84128285,0.00019985,2]
[360217499,1746629438819,-20974.3147493,0.00019986,2]
[360217501,1746629438832,-44335.20743941,0.00019986,2]
[360217508,1746629440461,-705.05576367,0.00019986,2]
[360217509,1746629440562,-325.72621897,0.00019986,2]
[360217510,1746629440574,-7045.90586385,0.00019986,2]
[360217511,1746629440583,-627.5563199,0.00019986,2]
[360217512,1746629440592,-200.0,0.00019986,2]
[360217513,1746629440602,-200.0,0.00019986,2]
[360217514,1746629440611,-151.0,0.00019988,2]
[360217515,1746629440621,-151.0,0.00019988,2]
[360217516,1746629440631,-668.65185757,0.00019988,2]
[360217517,1746629440640,-208.34877114,0.0001999,2]
[360217518,1746629440650,-208.34877114,0.0001999,2]
[360217519,1746629440660,-19339.1884164,0.00019992,2]
[360217520,1746629440672,-4004.67867714,0.00019992,2]
[360217523,1746629440888,-3157.1208,0.00019992,2]
[360217524,1746629440901,-318.53465543,0.00019992,2]
[360217540,1746629443268,-450.17991328,0.00019992,2]
[360217546,1746629445265,-5.061e-05,0.00019992,2]
[360217547,1746629445277,-13012.31114049,0.00019992,2]
[360217548,1746629445287,-450.0,0.00019996,2]
[360217549,1746629445297,-450.0,0.00019996,2]
[360217550,1746629445306,-465.34123055,0.00019998,2]
[360217551,1746629445317,-518.70285283,0.00019998,2]
[360217552,1746629445327,-472.83645344,0.00019998,2]
[360217553,1746629445336,-456.64876546,0.00019998,2]
[360217554,1746629445346,-453.7754506,0.00019998,2]
[360217555,1746629445355,-450.0,0.00019998,2]
[360217556,1746629445365,-591.46121359,0.00019998,2]
[360217557,1746629445375,-450.0,0.00019998,2]
[360217558,1746629445384,-500.0,0.00019998,2]
[360217559,1746629445394,-453.57451364,0.00019998,2]
[360217560,1746629445404,-450.0,0.00019998,2]
[360217561,1746629445415,-451.83985993,0.00019998,2]
[360217562,1746629445426,-450.0,0.00019998,2]
[360217563,1746629445442,-450.0,0.00019998,2]
[360217564,1746629445452,-450.0,0.00019998,2]
[360217565,1746629445462,-340.79,0.00019998,2]
[360217566,1746629445472,-424.66755449,0.00019998,2]
[360217567,1746629445483,-450.0,0.00019998,2]
[360217568,1746629445493,-500.0,0.00019998,2]
[360217569,1746629445503,-500.56,0.00019998,2]
[360217570,1746629445513,-495.14,0.00019998,2]
[360217571,1746629445523,-150.0,0.00019998,2]
[360217572,1746629445535,-150.0,0.00019998,2]
[360217573,1746629445544,-150.0,0.00019998,2]
[360217574,1746629445554,-150.0,0.00019998,2]
[360217575,1746629445564,-410.52591875,0.00019998,2]
[360217576,1746629445575,-450.0,0.00019998,2]
[360217577,1746629445585,-450.0,0.00019998,2]
[360217578,1746629445596,-450.0,0.00019998,2]
[360217579,1746629445606,-450.0,0.00019998,2]
[360217580,1746629445615,-450.0,0.00019998,2]
[360217581,1746629445625,-250.0,0.00019998,2]
[360217582,1746629445634,-514.44963635,0.00019998,2]
[360217583,1746629445644,-510.18411999,0.00019998,2]
[360217584,1746629445654,-450.0,0.00019998,2]
[360217585,1746629445664,-450.0,0.00019998,2]
[360217586,1746629445674,-450.0,0.00019998,2]
[360217587,1746629445683,-450.0,0.00019998,2]
[360217588,1746629445692,-485.2,0.00019998,2]
[360217589,1746629445703,-450.0,0.00019998,2]
[360217590,1746629445712,-450.0,0.00019998,2]
[360217591,1746629445721,-450.0,0.00019998,2]
[360217592,1746629445770,-468.97778158,0.00019998,2]
[360217593,1746629445780,-550.82,0.00019998,2]
[360217594,1746629445790,-500.0,0.00019998,2]
[360217595,1746629445803,-450.0,0.00019998,2]
[360217596,1746629445813,-450.0,0.00019998,2]
[360217597,1746629445823,-450.0,0.00019998,2]
[360217598,1746629445832,-450.0,0.00019998,2]
[360217599,1746629445842,-450.0,0.00019998,2]
[360217600,1746629445852,-450.0,0.00019998,2]
[360217601,1746629445862,-450.0,0.00019998,2]
[360217602,1746629445871,-517.84184507,0.00019998,2]
[360217603,1746629445881,-450.0,0.00019998,2]
[360217604,1746629445890,-450.0,0.00019998,2]
[360217605,1746629445900,-450.0,0.00019998,2]
[360217606,1746629445910,-455.21599258,0.00019998,2]
[360217608,1746629445920,-450.0,0.00019998,2]
[360217609,1746629445930,-301.24573407,0.00019998,2]
[360217611,1746629445940,-450.0,0.00019998,2]
[360217613,1746629445950,-450.0,0.00019998,2]
[360217614,1746629445960,-450.0,0.00019998,2]
[360217615,1746629445970,-450.0,0.00019998,2]
[360217616,1746629445979,-486.17591022,0.00019998,2]
[360217617,1746629445989,-450.0,0.00019998,2]
[360217618,1746629445999,-295.76949226,0.00019998,2]
[360217619,1746629446008,-518.64,0.00019998,2]
[360217620,1746629446018,-450.0,0.00019998,2]
[360217622,1746629446028,-518.86541945,0.00019998,2]
[360217624,1746629446037,-450.0,0.00019998,2]
[360217625,1746629446047,-450.0,0.00019998,2]
[360217626,1746629446057,-450.0,0.00019998,2]
[360217628,1746629446069,-453.75925039,0.00019999,2]
[360217630,1746629446079,-322.49377229,0.00019999,2]
[360217632,1746629446089,-537.13846989,0.00019999,2]
[360217633,1746629446100,-505.45588707,0.00019999,2]
[360217634,1746629446110,-1954.71784213,0.00019999,2]
[360217635,1746629446120,-450.0,0.00019999,2]
[360217636,1746629446129,-453.66672869,0.00019999,2]
[360217637,1746629446139,-450.0,0.00019999,2]
[360217638,1746629446149,-450.0,0.00019999,2]
[360217639,1746629446159,-450.417265,0.00019999,2]
[360217640,1746629446169,-457.83863942,0.00019999,2]
[360217641,1746629446179,-458.64482104,0.00019999,2]
[360217642,1746629446189,-450.0,0.00019999,2]
[360217643,1746629446199,-450.0,0.00019999,2]
[360217644,1746629446208,-450.0,0.00019999,2]
[360217645,1746629446218,-450.75411102,0.00019999,2]
[360217646,1746629446228,-516.15448255,0.00019999,2]
[360217647,1746629446238,-450.0,0.00019999,2]
[360217648,1746629446247,-450.0,0.00019999,2]
[360217649,1746629446256,-11025.0469479,0.00019999,2]
[360217650,1746629446270,-1474.9530521,0.00019999,2]
[360217651,1746629446280,-450.0,0.00019999,2]
[360217652,1746629446292,-450.0,0.00019999,2]
[360217653,1746629446303,-490.0,0.00019999,2]
[360217654,1746629446313,-500.0,0.00019999,2]
[360217655,1746629446322,-450.0,0.00019999,2]
[360217656,1746629446332,-450.0,0.00019999,2]
[360217657,1746629446343,-450.0,0.00019999,2]
[360217658,1746629446352,-450.0,0.00019999,2]
[360217659,1746629446362,-450.0,0.00019999,2]
[360217660,1746629446371,-500.0,0.00019999,2]
[360217661,1746629446381,-500.0,0.00019999,2]
[360217662,1746629446390,-500.0,0.00019999,2]
[360217663,1746629446400,-500.0,0.00019999,2]
[360217664,1746629446409,-500.0,0.00019999,2]
[360217665,1746629446418,-423.07591669,0.00019999,2]
[360217666,1746629446428,-450.0,0.00019999,2]
[360217667,1746629446441,-450.0,0.00019999,2]
[360217668,1746629446450,-450.0,0.00019999,2]
[360217669,1746629446459,-450.0,0.00019999,2]
[360217670,1746629446470,-450.0,0.00019999,2]
[360217671,1746629446480,-192.8,0.00019999,2]
[360217672,1746629446490,-450.0,0.00019999,2]
[360217673,1746629446499,-450.0,0.00019999,2]
[360217674,1746629446509,-450.0,0.00019999,2]
[360217675,1746629446519,-450.0,0.00019999,2]
[360217676,1746629446528,-450.0,0.00019999,2]
[360217677,1746629446537,-450.0,0.00019999,2]
[360217678,1746629446547,-450.0,0.00019999,2]
[360217679,1746629446556,-450.0,0.00019999,2]
[360217680,1746629446566,-505.41,0.00019999,2]
[360217681,1746629446576,-450.0,0.00019999,2]
[360217682,1746629446585,-450.0,0.00019999,2]
[360217683,1746629446594,-450.0,0.00019999,2]
[360217684,1746629446604,-315.91,0.00019999,2]
[360217685,1746629446614,-450.0,0.00019999,2]
[360217686,1746629446624,-320.08720001,0.00019999,2]
[360217687,1746629446634,-450.0,0.00019999,2]
[360217688,1746629446643,-450.0,0.00019999,2]
[360217689,1746629446652,-450.0,0.00019999,2]
[360217690,1746629446662,-450.0,0.00019999,2]
[360217691,1746629446671,-450.0,0.00019999,2]
[360217692,1746629446681,-332.38,0.00019999,2]
[360217693,1746629446690,-450.0,0.00019999,2]
[360217694,1746629446700,-538.28,0.00019999,2]
[360217695,1746629446710,-549.73,0.00019999,2]
[360217696,1746629446719,-450.0,0.00019999,2]
[360217697,1746629446729,-450.0,0.00019999,2]
[360217698,1746629446738,-450.0,0.00019999,2]
[360217699,1746629446748,-450.0,0.00019999,2]
[360217700,1746629446757,-450.0,0.00019999,2]
[360217701,1746629446768,-450.0,0.00019999,2]
[360217702,1746629446777,-450.0,0.00019999,2]
[360217703,1746629446787,-393.7134794,0.00019999,2]
[360217704,1746629446810,-56.2865206,0.00019999,2]
[360217705,1746629446820,-391.16,0.00019999,2]
[360217706,1746629446830,-450.0,0.00019999,2]
[360217707,1746629446839,-450.0,0.00019999,2]
[360217708,1746629446848,-251.51297992,0.00019999,2]
[360217709,1746629446860,-198.48702008,0.00019999,2]
[360217710,1746629446869,-450.0,0.00019999,2]
[360217711,1746629446879,-450.0,0.00019999,2]
[360217712,1746629446888,-450.0,0.00019999,2]
[360217713,1746629446897,-450.0,0.00019999,2]
[360217714,1746629446907,-450.0,0.00019999,2]
[360217715,1746629446916,-450.0,0.00019999,2]
[360217716,1746629446926,-220.92,0.00019999,2]
[360217717,1746629446935,-450.0,0.00019999,2]
[360217718,1746629446945,-450.0,0.00019999,2]
[360217719,1746629446954,-450.0,0.00019999,2]
[360217720,1746629446963,-450.0,0.00019999,2]
[360217721,1746629446973,-450.0,0.00019999,2]
[360217722,1746629446983,-450.0,0.00019999,2]
[360217723,1746629446993,-494.37,0.00019999,2]
[360217724,1746629447003,-450.0,0.00019999,2]
[360217725,1746629447012,-67.56477048,0.00019999,2]
[360217726,1746629447024,-382.43522952,0.00019999,2]
[360217727,1746629447036,-1926.29,0.00019999,2]
[360217728,1746629447046,-1926.29,0.00019999,2]
[360217729,1746629447057,-1913.38477089,0.00019999,2]
[360217730,1746629447234,-1022.07770437,0.00019998,2]
[360217731,1746629447247,-1262.74229563,0.00019998,2]
[360217732,1746629447257,-12.90522911,0.00019999,2]
[360217733,1746629447268,-1926.29,0.00019999,2]
[360217734,1746629447278,-1926.29,0.00019999,2]
[360217735,1746629447287,-267.74445966,0.00019999,2]
[360217736,1746629447298,-874.66755449,0.00019999,2]
[360217737,1746629447321,-783.87798585,0.00019999,2]
[360217738,1746629447331,-1926.29,0.00019999,2]
[360217739,1746629447342,-1926.29,0.00019999,2]
[360217740,1746629447352,-1926.29,0.00019999,2]
[360217741,1746629447362,-1926.29,0.00019999,2]
[360217742,1746629447371,-1926.29,0.00019999,2]
[360217743,1746629447380,-965.69731415,0.00019999,2]
[360217744,1746629447395,-420.93445695,0.00019999,2]
[360217745,1746629447407,-539.6582289,0.00019999,2]
[360217746,1746629447416,-369.89177111,0.00019999,2]
[360217747,1746629597948,150.0,0.0001904,2]
[360217748,1746629822679,1000.0,0.00018834,2]
[360217749,1746629841060,161.24,0.00018956,2]
[360217750,1746629905163,1500.0,0.00019178,2]
[360217751,1746629989575,246.2,0.00018834,2]
[360217752,1746630020599,803.45,0.00016917,2]
[360217753,1746630020816,803.45,0.00019181,2]
[360217754,1746630059653,1132.0,0.000194,2]
[360217755,1746630098229,250.0,0.00018949,2]
[360217756,1746630099495,-166.66,0.00019502,2]
[360217757,1746630115118,1000.0,0.0003,30]
[360217758,1746630171060,450.0,0.00029589,30]
[360217759,1746630246937,151.1,0.0001889,2]
[360217760,1746630247167,151.1,0.00018897,2]
[360217761,1746630247573,151.1,0.00018904,2]
[360217762,1746630247809,151.1,0.00018911,2]
[360217763,1746630248068,151.1,0.00018919,2]
[360217764,1746630248312,151.1,0.00018926,2]
[360217765,1746630248663,151.1,0.00018933,2]
[360217766,1746630248753,151.1,0.0001894,2]
[360217767,1746630248945,151.1,0.00018948,2]
[360217768,1746630249035,700.0,0.0003,30]
[360217769,1746630249176,151.1,0.00018955,2]
[360217770,1746630249398,151.1,0.00018962,2]
[360217771,1746630249611,151.1,0.00018969,2]
[360217772,1746630250010,151.1,0.00018977,2]
[360217773,1746630250084,150.0,0.00029863,30]
[360217774,1746630250220,151.1,0.00018984,2]
[360217775,1746630250323,200.0,0.0002989,30]
[360217776,1746630253180,200.5831331,0.00029863,30]
[360217777,1746630257451,150.0,0.00029863,30]
[360217778,1746630257670,150.0,0.0002989,30]
[360217779,1746630257882,155.06185586,0.00029918,30]
[360217780,1746630307250,199.62,0.00018873,2]
[360217781,1746630345834,250.0,0.00017,2]
[360217782,1746630346900,300.0,0.00019,2]
[360217783,1746630350150,150.0,0.00018,2]
[360217784,1746630368271,150.0,0.0003,30]
[360217785,1746630402784,3420.53,0.00018872,2]
[360217786,1746630404715,153.440833,0.00019453,2]
[360217787,1746630438145,150.0,0.00018986,7]
[360217788,1746630521247,210.07,0.00018879,2]
[360217794,1746630523862,200.0,0.00018834,2]
[360217795,1746630546971,1447.17,0.00018883,2]
[360217796,1746630612413,250.0,0.0003,30]
[360217803,1746630632285,-200.0,0.00019551,2]
[360217804,1746630632295,-200.0,0.00019574,2]
[360217805,1746630632305,-187.11466007,0.00019597,2]
[360217806,1746630632315,-1132.0,0.000196,2]
[360217807,1746630632324,-151.0,0.000196,2]
[360217808,1746630632335,-200.0,0.00019628,2]
[360217809,1746630632345,-488.65,0.00019696,2]
[360217810,1746630632355,-244.32,0.00019697,2]
[360217811,1746630632364,-244.32,0.00019699,2]
[360217812,1746630632374,-1200.0,0.00019699,2]
[360217813,1746630632383,-300.0,0.00019699,2]
[360217814,1746630632393,-1527.0,0.000197,2]
[360217815,1746630632403,-732.96,0.000197,2]
[360217816,1746630632412,-300.0,0.00019775,2]
[360217817,1746630632422,-2500.0,0.00019776,2]
[360217818,1746630632433,-1294.5185,0.00019776,2]
[360217819,1746630632442,-561.25208395,0.00019793,2]
[360217820,1746630632452,-270.29516336,0.00019795,2]
[360217821,1746630632462,-12484.2122,0.000198,2]
[360217822,1746630632472,-158.42949226,0.000198,23]
[360217823,1746630632482,-1132.0,0.000198,2]
[360217824,1746630632492,-502.0,0.00019808,2]
[360217825,1746630632502,-207.4,0.00019861,2]
[360217826,1746630632511,-850.0,0.00019872,2]
[360217827,1746630632521,-500.0,0.00019873,2]
[360217828,1746630632530,-500.0,0.00019873,2]
[360217829,1746630632539,-500.0,0.00019873,2]
[360217830,1746630632549,-643.79746304,0.00019873,2]
[360217831,1746630632559,-500.0,0.00019873,2]
[360217832,1746630632568,-162.30323628,0.00019873,2]
[360217833,1746630632577,-500.0,0.00019873,2]
[360217834,1746630632587,-500.0,0.00019873,2]
[360217835,1746630632596,-500.0,0.00019873,2]
[360217836,1746630632606,-500.0,0.00019873,2]
[360217837,1746630632615,-500.0,0.00019873,2]
[360217838,1746630632625,-500.0,0.00019873,2]
[360217839,1746630632635,-262.01599656,0.00019875,2]
[360217840,1746630632645,-230.33552445,0.00019875,2]
[360217841,1746630632655,-500.0,0.00019875,2]
[360217842,1746630632664,-535.70144273,0.00019875,2]
[360217843,1746630632674,-1025.29531694,0.00019875,2]
[360217844,1746630632684,-500.0,0.00019875,2]
[360217845,1746630632693,-535.70144273,0.00019875,2]
[360217846,1746630632703,-1025.29531694,0.00019875,2]
[360217847,1746630632712,-500.0,0.00019875,2]
[360217848,1746630632722,-535.70144273,0.00019875,2]
[360217849,1746630632732,-1025.29531694,0.00019875,2]
[360217850,1746630632742,-535.70144273,0.00019875,2]
[360217851,1746630632752,-500.0,0.00019875,2]
[360217852,1746630632762,-535.70144273,0.00019875,2]
[360217853,1746630632772,-1025.29531694,0.00019875,2]
[360217854,1746630632782,-500.0,0.00019875,2]
[360217855,1746630632792,-535.70144273,0.00019875,2]
[360217856,1746630632802,-1025.29531694,0.00019875,2]
[360217857,1746630632813,-535.70144273,0.00019875,2]
[360217858,1746630632823,-1025.29531694,0.00019875,2]
[360217859,1746630632833,-500.0,0.00019875,2]
[360217860,1746630632843,-535.70144273,0.00019875,2]
[360217861,1746630632854,-1025.29531694,0.00019875,2]
[360217862,1746630632865,-535.70144273,0.00019875,2]
[360217863,1746630632875,-204.65515676,0.00019875,2]
[360217864,1746630632887,-1025.29531694,0.00019875,2]
[360217865,1746630632898,-535.70144273,0.00019875,2]
[360217866,1746630632908,-1025.29531694,0.00019875,2]
[360217867,1746630632918,-535.70144273,0.00019875,2]
[360217868,1746630632928,-535.70144273,0.00019875,2]
[360217869,1746630632938,-277.01318531,0.00019875,2]
[360217870,1746630632951,-581.8026882,0.00019875,2]
[360217930,1746630633868,-420.816,0.00019885,2]
[360217932,1746630633882,-406.7425,0.00019885,2]
[360217934,1746630633893,-1600.45024313,0.00019886,2]
[360217936,1746630633903,-12692.0108,0.00019886,2]
[360217938,1746630633914,-1000.0,0.00019886,2]
[360217940,1746630633924,-151.0,0.00019886,2]
[360217942,1746630633934,-151.0,0.00019886,2]
[360217944,1746630633945,-668.65185757,0.00019886,2]
[360217946,1746630633955,-1600.45024304,0.00019888,2]
[360217948,1746630633965,-1600.45024304,0.00019889,2]
[360217950,1746630633975,-1600.45024304,0.00019891,2]
[360217952,1746630633985,-1065.82170768,0.00019892,2]
[360217954,1746630634003,-534.62853536,0.00019892,2]
[360217955,1746630634014,-450.0,0.00019893,2]